fUSD/lending_fUSD_20260519
["ID","MTS","AMOUNT","RATE_DAILY","PERIOD"]
[422633564,1779185444000,-151.0,0.00028624,7]
[422633566,1779185444000,-151.0,0.00028624,7]
[422633572,1779185444000,-897.36146,0.00028624,7]
[422633582,1779185444000,-157.045705,0.00028624,7]
[422633574,1779185444000,-151.0,0.00028624,7]
[422633576,1779185444000,-151.0,0.00028624,7]
[422633575,1779185444000,-151.0,0.00028624,7]
[422633573,1779185444000,-151.0,0.00028624,7]
[422633580,1779185444000,-151.0,0.00028624,7]
[422633578,1779185444000,-151.0,0.00028624,7]
[422633577,1779185444000,-151.0,0.00028624,7]
[422633583,1779185444000,-151.0,0.00028624,7]
[422633581,1779185444000,-151.0,0.00028624,7]
[422633579,1779185444000,-151.0,0.00028624,7]
[422633571,1779185444000,-897.36146,0.00028624,7]
[422633585,1779185444000,-273.87,0.0002863,2]
[422633584,1779185444000,-1288.93,0.0002863,2]
[422633589,1779185444000,-1289.04,0.0002863,2]
[422633618,1779185444000,-273.87,0.00028756,7]
[422633619,1779185444000,-602.18,0.00028756,7]
[422633614,1779185444000,-449.6,0.00028725,2]
[422633654,1779185444000,-449.1,0.00028883,30]
[422633655,1779185444000,-602.18,0.00028883,30]
[422633648,1779185444000,-1289.04,0.00028852,7]
[422633652,1779185444000,-1288.93,0.00028883,30]
[422633651,1779185444000,-152.0,0.00028874,3]
[422633653,1779185444000,-273.87,0.00028883,30]
[422633657,1779185444000,-449.6,0.00028883,30]
[422633660,1779185444000,-156.9,0.000289,7]
[422633659,1779185444000,-602.5,0.00028883,30]
[422633666,1779185444000,-449.6,0.00028915,2]
[422633661,1779185444000,-1288.93,0.00028915,2]
[422633662,1779185444000,-449.1,0.00028915,2]
[422633658,1779185444000,-1289.04,0.00028883,30]
[422633663,1779185444000,-273.87,0.00028915,2]
[422633664,1779185444000,-602.18,0.00028915,2]
[422633665,1779185444000,-261.68,0.00028915,2]
[422633669,1779185444000,-182.84263695,0.00028919,2]
[422633667,1779185444000,-1289.04,0.00028915,2]
[422633671,1779185444000,-1288.93,0.00028947,7]
[422633672,1779185444000,-449.1,0.00028947,7]
[422633668,1779185444000,-602.5,0.00028915,2]
[422633673,1779185444000,-273.87,0.00028947,7]
[422633670,1779185444000,-1500.0,0.00028943,15]
[422633678,1779185444000,-602.5,0.00028947,7]
[422633675,1779185444000,-261.68,0.00028947,7]
[422633674,1779185444000,-602.18,0.00028947,7]
[422633613,1779185444000,-1289.04,0.00028725,2]
[422633647,1779185444000,-261.68,0.00028852,7]
[422633650,1779185444000,-602.5,0.00028852,7]
[422633677,1779185444000,-1289.04,0.00028947,7]
[422633645,1779185444000,-449.1,0.00028852,7]
[422633649,1779185444000,-449.6,0.00028852,7]
[422633632,1779185444000,-1289.04,0.00028788,30]
[422633633,1779185444000,-449.6,0.00028788,30]
[422633622,1779185444000,-449.6,0.00028756,7]
[422633676,1779185444000,-449.6,0.00028947,7]
[422633623,1779185444000,-602.5,0.00028756,7]
[422633629,1779185444000,-273.87,0.00028788,30]
[422633627,1779185444000,-1288.93,0.00028788,30]
[422633628,1779185444000,-449.1,0.00028788,30]
[422633624,1779185444000,-500.0,0.00028767,2]
[422633626,1779185444000,-150.0,0.00028767,2]
[422633625,1779185444000,-253.0,0.00028767,14]
[422633630,1779185444000,-602.18,0.00028788,30]
[422633621,1779185444000,-1289.04,0.00028756,7]
[422633634,1779185444000,-602.5,0.00028788,30]
[422633656,1779185444000,-261.68,0.00028883,30]
[422633646,1779185444000,-602.18,0.00028852,7]
[422633636,1779185444000,-449.1,0.0002882,2]
[422633642,1779185444000,-602.5,0.0002882,2]
[422633631,1779185444000,-261.68,0.00028788,30]
[422633644,1779185444000,-273.87,0.00028852,7]
[422633639,1779185444000,-261.68,0.0002882,2]
[422633635,1779185444000,-1288.93,0.0002882,2]
[422633640,1779185444000,-1289.04,0.0002882,2]
[422633643,1779185444000,-1288.93,0.00028852,7]
[422633641,1779185444000,-449.6,0.0002882,2]
[422633637,1779185444000,-273.87,0.0002882,2]
[422633638,1779185444000,-602.18,0.0002882,2]
[422633717,1779185445000,-502.0,0.00029095,4]
[422633721,1779185445000,-290.49,0.000291,2]
[422633711,1779185445000,-602.18,0.00029074,30]
[422633713,1779185445000,-1289.04,0.00029074,30]
[422633722,1779185445000,-743.65,0.000291,2]
[422633718,1779185445000,-302.1,0.000291,2]
[422633712,1779185445000,-261.68,0.00029074,30]
[422633714,1779185445000,-449.6,0.00029074,30]
[422633715,1779185445000,-602.5,0.00029074,30]
[422633720,1779185445000,-418.03,0.000291,2]
[422633723,1779185445000,-1288.93,0.00029105,2]
[422633726,1779185445000,-602.18,0.00029105,2]
[422633728,1779185445000,-1289.04,0.00029105,2]
[422633727,1779185445000,-261.68,0.00029105,2]
[422633733,1779185445000,-500.0,0.0002913,7]
[422633724,1779185445000,-273.87,0.00029105,2]
[422633731,1779185445000,-500.0,0.0002913,7]
[422633729,1779185445000,-449.6,0.00029105,2]
[422633732,1779185445000,-619.59,0.0002913,7]
[422633734,1779185445000,-500.0,0.0002913,7]
[422633735,1779185445000,-500.0,0.0002913,7]
[422633730,1779185445000,-602.5,0.00029105,2]
[422633709,1779185445000,-273.87,0.00029074,30]
[422633737,1779185445000,-500.0,0.0002913,7]
[422633725,1779185445000,-449.1,0.00029105,2]
[422633719,1779185445000,-256.73,0.000291,2]
[422633696,1779185445000,-449.6,0.0002901,2]
[422633706,1779185445000,-602.5,0.00029042,7]
[422633739,1779185445000,-500.0,0.0002913,7]
[422633680,1779185445000,-192.21,0.00028979,30]
[422633690,1779185445000,-602.5,0.00028979,30]
[422633679,1779185445000,-334.0,0.00028979,30]
[422633691,1779185445000,-1288.93,0.0002901,2]
[422633681,1779185445000,-1288.93,0.00028979,30]
[422633686,1779185445000,-602.18,0.00028979,30]
[422633683,1779185445000,-449.1,0.00028979,30]
[422633689,1779185445000,-1289.04,0.00028979,30]
[422633685,1779185445000,-273.87,0.00028979,30]
[422633687,1779185445000,-261.68,0.00028979,30]
[422633688,1779185445000,-449.6,0.00028979,30]
[422633710,1779185445000,-449.1,0.00029074,30]
[422633693,1779185445000,-273.87,0.0002901,2]
[422633694,1779185445000,-602.18,0.0002901,2]
[422633700,1779185445000,-449.1,0.00029042,7]
[422633695,1779185445000,-261.68,0.0002901,2]
[422633699,1779185445000,-1288.93,0.00029042,7]
[422633701,1779185445000,-273.87,0.00029042,7]
[422633702,1779185445000,-602.18,0.00029042,7]
[422633697,1779185445000,-1289.04,0.0002901,2]
[422633698,1779185445000,-602.5,0.0002901,2]
[422633704,1779185445000,-449.6,0.00029042,7]
[422633703,1779185445000,-261.68,0.00029042,7]
[422633705,1779185445000,-1289.04,0.00029042,7]
[422633708,1779185445000,-1288.93,0.00029074,30]
[422633692,1779185445000,-449.1,0.0002901,2]
[422633748,1779185445000,-500.0,0.0002913,7]
[422633749,1779185445000,-500.0,0.0002913,7]
[422633738,1779185445000,-500.0,0.0002913,7]
[422633771,1779185445000,-602.18,0.00029137,7]
[422633767,1779185445000,-150.70512206,0.00029134,7]
[422633774,1779185445000,-449.6,0.00029137,7]
[422633773,1779185445000,-1289.04,0.00029137,7]
[422633784,1779185445000,-1289.04,0.00029169,30]
[422633776,1779185445000,-191.1620045,0.00029141,2]
[422633775,1779185445000,-602.5,0.00029137,7]
[422633778,1779185445000,-267.54370149,0.00029141,7]
[422633777,1779185445000,-155.47197482,0.00029141,7]
[422633779,1779185445000,-1288.93,0.00029169,30]
[422633781,1779185445000,-449.1,0.00029169,30]
[422633782,1779185445000,-602.18,0.00029169,30]
[422633783,1779185445000,-261.68,0.00029169,30]
[422633780,1779185445000,-273.87,0.00029169,30]
[422633785,1779185445000,-449.6,0.00029169,30]
[422633786,1779185445000,-602.5,0.00029169,30]
[422633787,1779185445000,-2314.0,0.0002917,3]
[422633747,1779185445000,-500.0,0.0002913,7]
[422633792,1779185445000,-602.18,0.00029201,2]
[422633790,1779185445000,-273.87,0.00029201,2]
[422633795,1779185445000,-449.6,0.00029201,2]
[422633791,1779185445000,-449.1,0.00029201,2]
[422633793,1779185445000,-261.68,0.00029201,2]
[422633788,1779185445000,-899.4,0.00029188,7]
[422633794,1779185445000,-1289.04,0.00029201,2]
[422633768,1779185445000,-1288.93,0.00029137,7]
[422633765,1779185445000,-500.0,0.0002913,7]
[422633789,1779185445000,-1288.93,0.00029201,2]
[422633769,1779185445000,-273.87,0.00029137,7]
[422633766,1779185445000,-500.0,0.0002913,7]
[422633736,1779185445000,-500.0,0.0002913,7]
[422633740,1779185445000,-500.0,0.0002913,7]
[422633742,1779185445000,-500.0,0.0002913,7]
[422633745,1779185445000,-500.0,0.0002913,7]
[422633743,1779185445000,-500.0,0.0002913,7]
[422633744,1779185445000,-500.0,0.0002913,7]
[422633746,1779185445000,-500.0,0.0002913,7]
[422633751,1779185445000,-500.0,0.0002913,7]
[422633752,1779185445000,-500.0,0.0002913,7]
[422633758,1779185445000,-500.0,0.0002913,7]
[422633755,1779185445000,-500.0,0.0002913,7]
[422633741,1779185445000,-500.0,0.0002913,7]
[422633753,1779185445000,-500.0,0.0002913,7]
[422633764,1779185445000,-500.0,0.0002913,7]
[422633750,1779185445000,-500.0,0.0002913,7]
[422633770,1779185445000,-449.1,0.00029137,7]
[422633761,1779185445000,-500.0,0.0002913,7]
[422633762,1779185445000,-494.75,0.0002913,7]
[422633763,1779185445000,-500.0,0.0002913,7]
[422633760,1779185445000,-500.0,0.0002913,7]
[422633756,1779185445000,-500.0,0.0002913,7]
[422633759,1779185445000,-500.0,0.0002913,7]
[422633757,1779185445000,-500.0,0.0002913,7]
[422633754,1779185445000,-500.0,0.0002913,7]
[422633772,1779185445000,-261.68,0.00029137,7]
[422633810,1779185446000,-458.0,0.00029308,60]
[422633824,1779185446000,-500.0,0.00029836,30]
[422633815,1779185446000,-1587.0,0.0002949,3]
[422633818,1779185446000,-150.0,0.00029534,2]
[422633819,1779185446000,-171.05922179,0.000296,30]
[422633816,1779185446000,-53650.59156407,0.000295,2]
[422633822,1779185446000,-163.0,0.0002981,3]
[422633830,1779185446000,-500.0,0.000299,14]
[422633826,1779185446000,-500.0,0.00029836,30]
[422633828,1779185446000,-3544.0,0.00029863,2]
[422633833,1779185446000,-4620.0,0.0003,30]
[422633825,1779185446000,-500.0,0.00029836,30]
[422633823,1779185446000,-163.0,0.0002981,3]
[422633827,1779185446000,-197.10940344,0.00029836,30]
[422633829,1779185446000,-7184.23,0.00029872,2]
[422633812,1779185446000,-170.0,0.00029308,60]
[422633831,1779185446000,-178.23,0.000299,14]
[422633811,1779185446000,-215.0,0.00029308,60]
[422633802,1779185446000,-449.21,0.00029232,7]
[422633814,1779185446000,-1300.0,0.00029308,60]
[422633832,1779185446000,-156.91,0.000299,7]
[422633797,1779185446000,-2455.63122309,0.00029226,2]
[422633796,1779185446000,-602.5,0.00029201,2]
[422633798,1779185446000,-151.0,0.00029229,7]
[422633799,1779185446000,-602.79,0.00029232,7]
[422633801,1779185446000,-274.06,0.00029232,7]
[422633800,1779185446000,-1288.96,0.00029232,7]
[422633809,1779185446000,-1098.0,0.00029308,60]
[422633807,1779185446000,-602.61,0.00029232,7]
[422633808,1779185446000,-156.91,0.000293,7]
[422633804,1779185446000,-261.82,0.00029232,7]
[422633805,1779185446000,-1289.12,0.00029232,7]
[422633803,1779185446000,-602.23,0.00029232,7]
[422633806,1779185446000,-449.75,0.00029232,7]
[422633820,1779185446000,-502.0,0.00029748,4]
[422633821,1779185446000,-8715.57779158,0.000298,2]
[422633813,1779185446000,-500.0,0.00029308,60]
[422633817,1779185446000,-182.84263695,0.00029528,2]
[422633835,1779185446000,-10124.17314282,0.0003,2]
[422633861,1779185446000,-157.0,0.00030106,30]
[422633845,1779185446000,-464.55765112,0.000301,2]
[422633868,1779185446000,-965802.87640062,0.0003013,7]
[422633859,1779185446000,-158.0,0.00030106,30]
[422633860,1779185446000,-154.0,0.00030106,30]
[422633857,1779185446000,-153.0,0.00030106,30]
[422633864,1779185446000,-152.0,0.00030112,7]
[422633866,1779185446000,-151.0,0.00030127,7]
[422633865,1779185446000,-151.0,0.00030127,7]
[422633858,1779185446000,-224.0,0.00030106,30]
[422633863,1779185446000,-260.0,0.00030106,30]
[422633867,1779185446000,-151.0,0.00030127,7]
[422633875,1779185446000,-4727.23674913,0.00026297,2]
[422633872,1779185446000,-288.39855025,0.00017352,2]
[422633873,1779185446000,-419.36228652,0.00017352,2]
[422633878,1779185446000,-273.6322525,0.0003013,7]
[422633874,1779185446000,-0.504911,0.00017352,2]
[422633877,1779185446000,-937.0,0.00026473,10]
[422633834,1779185446000,-155.97,0.0003,2]
[422633856,1779185446000,-154.0,0.00030106,30]
[422633876,1779185446000,-10308.9177475,0.00026297,2]
[422633855,1779185446000,-154.0,0.00030106,30]
[422633837,1779185446000,-200.0,0.0003,2]
[422633841,1779185446000,-500.0,0.00030036,14]
[422633840,1779185446000,-3501.15056187,0.0003003,2]
[422633836,1779185446000,-6000.0,0.0003,3]
[422633844,1779185446000,-464.55765112,0.000301,2]
[422633843,1779185446000,-385.01447592,0.000301,2]
[422633838,1779185446000,-165.0,0.0003002,30]
[422633842,1779185446000,-164.94,0.00030036,14]
[422633839,1779185446000,-164.0,0.0003002,30]
[422633852,1779185446000,-155.0,0.00030106,30]
[422633848,1779185446000,-173.0,0.00030101,30]
[422633851,1779185446000,-165.0,0.00030106,30]
[422633847,1779185446000,-200.0,0.00030101,30]
[422633850,1779185446000,-160.0,0.00030105,30]
[422633849,1779185446000,-157.0,0.00030104,30]
[422633853,1779185446000,-182.0,0.00030106,30]
[422633846,1779185446000,-259.54928809,0.000301,2]
[422633854,1779185446000,-289.0,0.00030106,30]
[422633879,1779185447000,-500.0,0.00014181,2]
[422633881,1779185447000,-392.57,0.00014181,2]
[422633880,1779185447000,-500.0,0.00014181,2]
[422633882,1779185570000,-500.0,0.00014081,2]
[422633884,1779185588000,221.85266649,7.945e-05,2]
[422633883,1779185588000,5640.76766751,7.945e-05,2]
[422633886,1779185760000,-155.18,0.00013009,2]
[422633889,1779185811000,518.50412553,0.00030129,120]
[422633888,1779185811000,500.0,0.00029403,120]
[422633887,1779185811000,500.0,0.00029225,120]
[422633892,1779186008000,-3388.8178875,0.00013868,2]
[422633893,1779186051000,500.0,0.00029225,120]
[422633895,1779186179000,-165.12,0.0001371,2]
[422633896,1779186195000,-247.16846887,0.00013768,2]
[422633901,1779186299000,-247.16846887,0.00013968,2]
[422633900,1779186299000,-247.16846887,0.00013968,2]
[422633899,1779186299000,-247.16846887,0.00013968,2]
[422633898,1779186299000,-32.24492197,0.00013968,2]
[422633897,1779186299000,-214.9235469,0.00013868,2]
[422633904,1779186300000,-247.16846887,0.00013773,2]
[422633903,1779186300000,-247.16846887,0.00013773,2]
[422633902,1779186300000,-247.16846887,0.00013968,2]
[422633905,1779186301000,-247.16846887,0.00013773,2]
[422633906,1779186301000,-18.22885039,0.00013773,2]
[422633907,1779186301000,-228.93961848,0.00013969,2]
[422633909,1779186428000,-3388.8178875,0.0001377,2]
[422633910,1779186541000,1000.0,0.00030136,120]
[422633911,1779186598000,-494.33693774,0.00013768,2]
[422633912,1779186604000,155.18,0.00028479,120]
[422633915,1779186631000,-346.52232905,0.0001377,2]
[422633914,1779186631000,-280.63250004,0.0001377,2]
[422633913,1779186631000,-260.55377575,0.0001377,2]
[422633969,1779186632000,-151.0,0.00017387,2]
[422633972,1779186632000,-151.0,0.00017387,2]
[422633966,1779186632000,-151.0,0.00017387,2]
[422633963,1779186632000,-168.6,0.00016438,2]
[422633965,1779186632000,-165.12,0.00017003,2]
[422633962,1779186632000,-6623.73,0.00016116,2]
[422633970,1779186632000,-151.0,0.00017387,2]
[422633959,1779186632000,-420.0,0.00015196,2]
[422633961,1779186632000,-300.0,0.00016,2]
[422633964,1779186632000,-587.0,0.0001665,2]
[422633967,1779186632000,-151.0,0.00017387,2]
[422633975,1779186632000,-203.17702371,0.00017387,2]
[422633971,1779186632000,-151.0,0.00017387,2]
[422633973,1779186632000,-151.0,0.00017387,2]
[422633960,1779186632000,-165.12,0.00015356,2]
[422633974,1779186632000,-151.0,0.00017387,2]
[422633978,1779186632000,-151.0,0.00017387,2]
[422633976,1779186632000,-151.0,0.00017387,2]
[422633977,1779186632000,-151.0,0.00017387,2]
[422633979,1779186632000,-242.07233619,0.00017387,2]
[422633982,1779186632000,-168.6,0.0001841,2]
[422633983,1779186632000,-165.12,0.00018649,2]
[422633980,1779186632000,-350.0,0.00018,2]
[422633968,1779186632000,-151.0,0.00017387,2]
[422633957,1779186632000,-178.0,0.00014992,2]
[422633953,1779186632000,-500.0,0.00013969,2]
[422633956,1779186632000,-336.18980132,0.000149,2]
[422633916,1779186632000,-407.49983695,0.0001377,2]
[422633917,1779186632000,-552.72,0.0001377,2]
[422633919,1779186632000,-1618.91636732,0.0001377,2]
[422633920,1779186632000,-618.31401655,0.0001377,2]
[422633923,1779186632000,-1352.65928753,0.0001377,2]
[422633925,1779186632000,-180.0,0.00013868,2]
[422633927,1779186632000,-300.0,0.00013868,2]
[422633933,1779186632000,-500.0,0.00013967,2]
[422633931,1779186632000,-215613.7472,0.00013869,2]
[422633935,1779186632000,-500.0,0.00013967,2]
[422633929,1779186632000,-150.0,0.00013868,2]
[422633958,1779186632000,-1992.1935,0.00015077,2]
[422633937,1779186632000,-500.0,0.00013967,2]
[422633939,1779186632000,-500.0,0.00013967,2]
[422633943,1779186632000,-366.77974845,0.00013967,2]
[422633945,1779186632000,-500.0,0.00013967,2]
[422633947,1779186632000,-500.0,0.00013967,2]
[422633948,1779186632000,-500.0,0.00013967,2]
[422633951,1779186632000,-500.0,0.00013967,2]
[422633952,1779186632000,-500.0,0.00013967,2]
[422633950,1779186632000,-500.0,0.00013967,2]
[422633955,1779186632000,-250.0,0.00014,2]
[422633984,1779186632000,-1152.0,0.00019989,2]
[422633954,1779186632000,-71671.34058152,0.00013969,2]
[422633941,1779186632000,-500.0,0.00013967,2]
[422633981,1779186632000,-823.0,0.00018243,2]
[422633918,1779186632000,-1173.36399931,0.0001377,2]
[422633986,1779186632000,-202.0,0.0002,2]
[422634020,1779186632000,-166.66,0.0002302,2]
[422634015,1779186632000,-214.66,0.00022523,2]
[422634017,1779186632000,-202.0,0.00023,2]
[422634018,1779186632000,-156.0,0.00023,2]
[422634021,1779186632000,-5000.0,0.00023318,2]
[422634019,1779186632000,-182.0,0.00023,2]
[422634022,1779186632000,-165.12,0.00023589,2]
[422634024,1779186632000,-2258.0,0.00023998,2]
[422634023,1779186632000,-1508.04,0.00023677,2]
[422634026,1779186632000,-156.0,0.00024,2]
[422634025,1779186632000,-202.0,0.00024,2]
[422634016,1779186632000,-155.18,0.00022783,2]
[422634027,1779186632000,-182.0,0.00024,2]
[422634031,1779186632000,-1270.0,0.00024373,2]
[422634028,1779186632000,-392.42,0.00024105,2]
[422634033,1779186632000,-1000.0,0.00024658,2]
[422634032,1779186632000,-1224.0,0.00024373,2]
[422634034,1779186632000,-479.75,0.00024658,2]
[422634038,1779186632000,-219.54,0.00024658,2]
[422634036,1779186632000,-719.51,0.00024658,2]
[422634037,1779186632000,-592.58,0.00024658,2]
[422634039,1779186632000,-719.51,0.00024946,7]
[422634035,1779186632000,-333.68,0.00024658,2]
[422633987,1779186632000,-156.0,0.0002,2]
[422634030,1779186632000,-168.6,0.00024324,2]
[422634012,1779186632000,-168.6,0.00022353,2]
[422634029,1779186632000,-980.70952213,0.00024273,2]
[422634013,1779186632000,-163.88,0.00022455,2]
[422634014,1779186632000,-303.98,0.00022455,2]
[422633990,1779186632000,-1734.82,0.0002,2]
[422633985,1779186632000,-159.0,0.0002,2]
[422633989,1779186632000,-400.0,0.0002,2]
[422633991,1779186632000,-165.12,0.00020296,2]
[422633988,1779186632000,-182.0,0.0002,2]
[422633996,1779186632000,-182.0,0.00021,2]
[422633995,1779186632000,-156.0,0.00021,2]
[422633994,1779186632000,-202.0,0.00021,2]
[422633992,1779186632000,-168.6,0.00020381,2]
[422634002,1779186632000,-519.0,0.000218,2]
[422633997,1779186632000,-166.0,0.00021,2]
[422633993,1779186632000,-163.0,0.00021,2]
[422634001,1779186632000,-1224.0,0.00021373,2]
[422634011,1779186632000,-819.22,0.00022183,2]
[422633999,1779186632000,-200.0,0.00021311,2]
[422634010,1779186632000,-182.0,0.00022,2]
[422634009,1779186632000,-156.0,0.00022,2]
[422634004,1779186632000,-929.0,0.000218,2]
[422634005,1779186632000,-1585.76,0.00021839,2]
[422634006,1779186632000,-1613.0,0.00021902,2]
[422634007,1779186632000,-165.12,0.00021942,2]
[422634003,1779186632000,-770.0,0.000218,2]
[422634000,1779186632000,-1270.0,0.00021373,2]
[422633998,1779186632000,-167.15,0.00021211,2]
[422634008,1779186632000,-202.0,0.00022,2]
[422634062,1779186633000,-183.66592182,0.00025875,2]
[422634058,1779186633000,-1769.21289953,0.000258,2]
[422634060,1779186633000,-592.58,0.00025811,7]
[422634061,1779186633000,-219.54,0.00025811,7]
[422634065,1779186633000,-592.58,0.00026099,7]
[422634063,1779186633000,-1769.21289953,0.00026,2]
[422634064,1779186633000,-719.51,0.00026099,7]
[422634072,1779186633000,-219.54,0.00026388,2]
[422634066,1779186633000,-219.54,0.00026099,30]
[422634068,1779186633000,-168.6,0.00026296,2]
[422634071,1779186633000,-592.58,0.00026388,2]
[422634070,1779186633000,-719.51,0.00026388,2]
[422634069,1779186633000,-1769.21289953,0.000263,2]
[422634075,1779186633000,-719.51,0.00026676,7]
[422634077,1779186633000,-219.54,0.00026676,7]
[422634067,1779186633000,-3162.0,0.00026295,2]
[422634059,1779186633000,-719.51,0.00025811,7]
[422634045,1779186633000,-182.0,0.00025,2]
[422634057,1779186633000,-980.70952207,0.00025588,2]
[422634074,1779186633000,-1769.21289953,0.000265,2]
[422634040,1779186633000,-592.58,0.00024946,7]
[422634041,1779186633000,-219.54,0.00024946,7]
[422634043,1779186633000,-1769.21289953,0.00025,2]
[422634042,1779186633000,-208.0,0.00025,2]
[422634044,1779186633000,-172.0,0.00025,2]
[422634047,1779186633000,-592.58,0.00025234,2]
[422634046,1779186633000,-719.51,0.00025234,2]
[422634048,1779186633000,-219.54,0.00025234,30]
[422634050,1779186633000,-150.0,0.00025266,2]
[422634049,1779186633000,-165.12,0.00025235,2]
[422634051,1779186633000,-1769.21289953,0.000253,2]
[422634054,1779186633000,-719.51,0.00025523,2]
[422634055,1779186633000,-592.58,0.00025523,2]
[422634056,1779186633000,-219.54,0.00025523,2]
[422634052,1779186633000,-1769.21289953,0.000255,2]
[422634073,1779186633000,-333.68,0.00026484,2]
[422634053,1779186633000,-1280.82,0.00025516,7]
[422634078,1779186633000,-500.0,0.00026756,6]
[422634100,1779186633000,-500.0,0.00027397,2]
[422634099,1779186633000,-500.0,0.00027396,2]
[422634101,1779186633000,-150.0,0.00027397,2]
[422634103,1779186633000,-1500.0,0.00027397,2]
[422634102,1779186633000,-150.0,0.00027397,2]
[422634104,1779186633000,-300.0,0.00027397,2]
[422634106,1779186633000,-25479.76,0.00027397,10]
[422634107,1779186633000,-21233.13,0.00027397,10]
[422634111,1779186633000,-81070.15504607,0.00027526,2]
[422634108,1779186633000,-150.0,0.00027397,2]
[422634109,1779186633000,-500.0,0.00027525,2]
[422634110,1779186633000,-435.9322571,0.00027525,2]
[422634112,1779186633000,-174957.67385372,0.00027526,2]
[422634113,1779186633000,-41411.73899095,0.00027526,2]
[422634076,1779186633000,-592.58,0.00026676,7]
[422634098,1779186633000,-1224.0,0.00027373,2]
[422634094,1779186633000,-592.58,0.00027253,2]
[422634105,1779186633000,-479.75,0.00027397,2]
[422634097,1779186633000,-1085.77,0.00027354,7]
[422634079,1779186633000,-500.0,0.00026756,6]
[422634081,1779186633000,-1769.21289953,0.000268,2]
[422634084,1779186633000,-165.12,0.00026882,2]
[422634082,1779186633000,-921.9,0.00026882,2]
[422634085,1779186633000,-980.70952207,0.00026903,2]
[422634083,1779186633000,-150.0,0.00026882,2]
[422634086,1779186633000,-719.51,0.00026964,2]
[422634080,1779186633000,-537.95,0.00026756,6]
[422634090,1779186633000,-182.84263695,0.00027093,2]
[422634091,1779186633000,-1769.21289953,0.000271,2]
[422634088,1779186633000,-219.54,0.00026964,30]
[422634087,1779186633000,-592.58,0.00026964,2]
[422634092,1779186633000,-502.0,0.00027137,2]
[422634095,1779186633000,-219.54,0.00027253,2]
[422634093,1779186633000,-719.51,0.00027253,2]
[422634089,1779186633000,-1132.0,0.00027,2]
[422634096,1779186633000,-1769.21289953,0.000273,2]
[422634127,1779186637000,-500.0,0.00013967,2]
[422634126,1779186637000,-500.0,0.00013967,2]
[422634129,1779186637000,-500.0,0.00013967,2]
[422634131,1779186637000,-500.0,0.00013967,2]
[422634130,1779186637000,-500.0,0.00013967,2]
[422634132,1779186637000,-500.0,0.00013967,2]
[422634133,1779186637000,-500.0,0.00013967,2]
[422634128,1779186637000,-500.0,0.00013967,2]
[422634145,1779186638000,-500.0,0.00013967,2]
[422634142,1779186638000,-500.0,0.00013967,2]
[422634149,1779186638000,-500.0,0.00013967,2]
[422634148,1779186638000,-500.0,0.00013967,2]
[422634146,1779186638000,-500.0,0.00013967,2]